fUST/lending_fUST_20250601
["ID","MTS","AMOUNT","RATE_DAILY","PERIOD"]
[363589505,1748777464101,-550.27,0.000238,14]
[363589506,1748777464111,-10000.0,0.000238,7]
[363589507,1748777464120,-316687.63649265,0.000238,2]
[363589508,1748777464130,-2000.0,0.000238,2]
[363589509,1748777464139,-500.0,0.000238,2]
[363589510,1748777464150,-152.080715,0.000238,7]
[363589511,1748777464161,-207.0,0.000238,2]
[363589512,1748777464172,-2000.0,0.000238,2]
[363589513,1748777464182,-158.674894,0.000238,7]
[363589514,1748777464193,-151.0,0.000238,7]
[363589515,1748777464202,-151.0,0.000238,7]
[363589516,1748777464212,-151.0,0.000238,7]
[363589517,1748777464221,-151.0,0.000238,7]
[363589518,1748777464231,-151.0,0.000238,7]
[363589519,1748777464241,-151.0,0.000238,7]
[363589520,1748777464251,-151.0,0.000238,7]
[363589521,1748777464261,-151.0,0.000238,7]
[363589522,1748777464271,-150.0,0.000238,5]
[363589523,1748777464281,-151.0,0.000238,7]
[363589524,1748777464292,-151.0,0.000238,7]
[363589525,1748777464301,-151.0,0.000238,7]
[363589526,1748777464311,-229.948882,0.000238,7]
[363589527,1748777464321,-151.0,0.000238,7]
[363589528,1748777464331,-151.0,0.000238,7]
[363589529,1748777464340,-151.0,0.000238,7]
[363589530,1748777464351,-151.0,0.000238,7]
[363589531,1748777464361,-151.0,0.000238,7]
[363589532,1748777464372,-151.0,0.000238,7]
[363589533,1748777464383,-151.0,0.000238,7]
[363589534,1748777464394,-151.0,0.000238,7]
[363589535,1748777464405,-151.0,0.000238,7]
[363589536,1748777464415,-151.0,0.000238,7]
[363589537,1748777464426,-151.0,0.000238,7]
[363589538,1748777464437,-151.784493,0.000238,7]
[363589539,1748777464448,-151.0,0.000238,7]
[363589540,1748777464460,-433.191824,0.000238,7]
[363589541,1748777464470,-433.191824,0.000238,7]
[363589542,1748777464480,-433.191824,0.000238,7]
[363589543,1748777464491,-433.191824,0.000238,7]
[363589544,1748777464501,-151.0,0.000238,7]
[363589545,1748777464511,-151.0,0.000238,7]
[363589546,1748777464522,-819626.52482068,0.000238,2]
[363589548,1748777590721,480.906921,0.00013699,2]
[363589553,1748777790867,200.0,0.00023247,120]
[363589558,1748777866267,408.0,0.00024658,120]
[363589559,1748777871947,306.0,0.00024658,120]
[363589560,1748777884124,999.990001,0.00024658,120]
[363589609,1748777970806,200.0,0.00023934,120]
[363589611,1748778090807,200.0,0.00023228,120]
[363589614,1748778150816,200.0,0.00023092,120]
[363589622,1748778339106,-507.8162691,0.00015436,2]
[363589623,1748778339126,-171.65899179,0.00015944,2]
[363589624,1748778339146,-286.09831965,0.00015945,2]
[363589625,1748778339167,-2461.18264976,0.00016338,2]
[363589626,1748778339188,-300.0,0.00016435,2]
[363589627,1748778339209,-300.0,0.00016435,2]
[363589628,1748778339230,-859.78708935,0.00016436,2]
[363589629,1748778339251,-300.0,0.00016436,2]
[363589630,1748778339272,-1200.0,0.00016436,2]
[363589631,1748778339292,-2381.55627733,0.00016437,2]
[363589632,1748778426082,-300.0,0.00016436,2]
[363589633,1748778426104,-300.0,0.00016436,2]
[363589634,1748778426126,-795.68097353,0.00016437,2]
[363589635,1748778440099,-13599.94708841,0.00016437,2]
[363589636,1748778440271,-500.0,0.00016437,2]
[363589637,1748778440298,-207.90702998,0.00016437,2]
[363589670,1748778632562,-257.91707851,0.00016337,2]
[363589672,1748778632571,-262.48292149,0.00016338,2]
[363589675,1748778632583,-1706.46319835,0.00016338,2]
[363589677,1748778632593,-300.0,0.00016436,2]
[363589679,1748778632602,-292.09297002,0.00016437,2]
[363589681,1748778632612,-500.0,0.00016437,2]
[363589683,1748778632621,-248.62280926,0.00016437,2]
[363589684,1748778632630,-568.08512166,0.00016437,2]
[363589686,1748778632640,-552.07292145,0.00016437,2]
[363589688,1748778632650,-500.0,0.00016437,2]
[363589691,1748778632660,-332.66297926,0.00016437,2]
[363589693,1748778632672,-167.33702074,0.00016437,2]
[363589695,1748778632682,-500.0,0.00016437,2]
[363589697,1748778632695,-500.0,0.00016437,2]
[363589699,1748778632705,-500.0,0.00016437,2]
[363589701,1748778632715,-500.0,0.00016437,2]
[363589703,1748778632725,-500.0,0.00016437,2]
[363589705,1748778632735,-500.0,0.00016437,2]
[363589707,1748778632744,-500.0,0.00016437,2]
[363589709,1748778632754,-500.0,0.00016437,2]
[363589711,1748778632764,-500.0,0.00016437,2]
[363589713,1748778632774,-500.0,0.00016437,2]
[363589715,1748778632784,-457.79711717,0.00016437,2]
[363589717,1748778632794,-500.0,0.00016437,2]
[363589720,1748778632804,-500.0,0.00016437,2]
[363589721,1748778632815,-500.0,0.00016437,2]
[363589724,1748778632825,-500.0,0.00016437,2]
[363589726,1748778632835,-500.0,0.00016437,2]
[363589728,1748778632846,-488.46053697,0.00016437,2]
[363589730,1748778632856,-500.0,0.00016437,2]
[363589732,1748778632866,-500.0,0.00016437,2]
[363589734,1748778632876,-500.0,0.00016437,2]
[363589736,1748778632886,-435.56021367,0.00016437,2]
[363589739,1748778632904,-64.43978633,0.00016437,2]
[363589741,1748778632914,-238.0147435,0.00016437,2]
[363589742,1748778632923,-500.0,0.00016437,2]
[363589744,1748778632934,-288.82485619,0.00016437,2]
[363589747,1748778632949,-500.0,0.00016437,2]
[363589749,1748778632959,-267.72049655,0.00016437,2]
[363589751,1748778632969,-230.4537741,0.00016437,2]
[363589753,1748778632979,-500.0,0.00016437,2]
[363589755,1748778632989,-181.20628517,0.00016437,2]
[363589756,1748778632999,-179.44883231,0.00016437,2]
[363589759,1748778633009,-500.0,0.00016437,2]
[363589761,1748778633018,-268.43550798,0.00016437,2]
[363589763,1748778633030,-639.44710557,0.00016437,2]
[363589765,1748778633041,-600.0,0.00016437,2]
[363589767,1748778633051,-468.43550798,0.00016437,2]
[363589768,1748778633060,-503.21621732,0.00016437,2]
[363589771,1748778633071,-500.0,0.00016437,2]
[363589773,1748778633081,-500.0,0.00016437,2]
[363589775,1748778633091,-500.0,0.00016437,2]
[363589777,1748778633101,-433.16881611,0.00016437,2]
[363589779,1748778633112,-500.0,0.00016437,2]
[363589781,1748778633122,-170.91653711,0.00016437,2]
[363589783,1748778633132,-241.46287782,0.00016437,2]
[363589785,1748778633142,-500.0,0.00016437,2]
[363589787,1748778633154,-156.30416577,0.00016437,2]
[363589789,1748778633164,-500.0,0.00016437,2]
[363589791,1748778633174,-524.41058122,0.00016437,2]
[363589793,1748778633184,-393.74572365,0.00016437,2]
[363589795,1748778633193,-500.0,0.00016437,2]
[363589797,1748778633203,-500.0,0.00016437,2]
[363589799,1748778633213,-500.0,0.00016437,2]
[363589801,1748778633223,-418.63306381,0.00016437,2]
[363589803,1748778633233,-500.0,0.00016437,2]
[363589805,1748778633242,-316.43331867,0.00016437,2]
[363589807,1748778633252,-500.0,0.00016437,2]
[363589808,1748778633262,-251.97195787,0.00016437,2]
[363589809,1748778633272,-500.0,0.00016437,2]
[363589811,1748778633281,-500.0,0.00016437,2]
[363589813,1748778633291,-413.37190774,0.00016437,2]
[363589814,1748778633302,-377.32513767,0.00016437,2]
[363589816,1748778633312,-473.82574833,0.00016437,2]
[363589818,1748778633322,-500.0,0.00016437,2]
[363589820,1748778633332,-500.0,0.00016437,2]
[363589822,1748778633342,-161.22226827,0.00016437,2]
[363589824,1748778633352,-500.0,0.00016437,2]
[363589826,1748778633363,-203.84156069,0.00016437,2]
[363589828,1748778633373,-207.97230543,0.00016437,2]
[363589830,1748778633383,-428.24593369,0.00016437,2]
[363589832,1748778633393,-215.64578712,0.00016437,2]
[363589834,1748778633403,-500.0,0.00016437,2]
[363589836,1748778633414,-430.0,0.00016438,2]
[363589838,1748778633423,-430.0,0.00016438,2]
[363589840,1748778633434,-430.86400016,0.00016438,2]
[363589843,1748778633444,-264.49710687,0.00016438,2]
[363589845,1748778633455,-430.0,0.00016438,2]
[363589847,1748778633464,-430.0,0.00016438,2]
[363589849,1748778633474,-430.0,0.00016438,2]
[363589850,1748778633484,-430.0,0.00016438,2]
[363589851,1748778633493,-300.0,0.00016438,2]
[363589853,1748778633503,-502.26476204,0.00016438,2]
[363589855,1748778633514,-430.0,0.00016438,2]
[363589856,1748778633524,-356.9429258,0.00016438,2]
[363589858,1748778633534,-430.0,0.00016438,2]
[363589860,1748778633545,-430.0,0.00016438,2]
[363589862,1748778633555,-430.0,0.00016438,2]
[363589863,1748778633566,-430.0,0.00016438,2]
[363589865,1748778633576,-430.0,0.00016438,2]
[363589867,1748778633586,-430.0,0.00016438,2]
[363589869,1748778633597,-430.0,0.00016438,2]
[363589871,1748778633608,-430.0,0.00016438,2]
[363589873,1748778633617,-430.0,0.00016438,2]
[363589875,1748778633627,-170.292845,0.00016438,2]
[363589876,1748778633638,-430.0,0.00016438,2]
[363589878,1748778633648,-430.0,0.00016438,2]
[363589880,1748778633659,-430.0,0.00016438,2]
[363589882,1748778633670,-430.0,0.00016438,2]
[363589884,1748778633680,-433.9980122,0.00016438,2]
[363589885,1748778633690,-430.0,0.00016438,2]
[363589886,1748778633700,-342.53383866,0.00016438,2]
[363589887,1748778633710,-430.0,0.00016438,2]
[363589888,1748778633719,-430.0,0.00016438,2]
[363589889,1748778633729,-430.0,0.00016438,2]
[363589890,1748778633739,-430.0,0.00016438,2]
[363589891,1748778633750,-400.85672942,0.00016438,2]
[363589892,1748778633761,-430.0,0.00016438,2]
[363589893,1748778633771,-430.0,0.00016438,2]
[363589894,1748778633782,-430.0,0.00016438,2]
[363589895,1748778633792,-430.0,0.00016438,2]
[363589896,1748778633802,-430.0,0.00016438,2]
[363589897,1748778633812,-430.0,0.00016438,2]
[363589898,1748778633822,-199.09021773,0.00016438,2]
[363589899,1748778633832,-430.0,0.00016438,2]
[363589900,1748778633842,-170.21566736,0.00016438,2]
[363589901,1748778633853,-402.19656822,0.00016438,2]
[363589902,1748778633864,-196.85781241,0.00016438,2]
[363589903,1748778633875,-430.0,0.00016438,2]
[363589904,1748778633886,-430.0,0.00016438,2]
[363589905,1748778633896,-464.93363089,0.00016438,2]
[363589906,1748778633906,-430.0,0.00016438,2]
[363589907,1748778633916,-430.0,0.00016438,2]
[363589908,1748778633926,-430.0,0.00016438,2]
[363589909,1748778633936,-430.0,0.00016438,2]
[363589910,1748778633950,-430.0,0.00016438,2]
[363589911,1748778633960,-430.0,0.00016438,2]
[363589912,1748778633971,-430.0,0.00016438,2]
[363589913,1748778633981,-430.0,0.00016438,2]
[363589914,1748778633991,-430.0,0.00016438,2]
[363589915,1748778634001,-370.0,0.00016438,2]
[363589916,1748778634011,-430.0,0.00016438,2]
[363589917,1748778634022,-430.0,0.00016438,2]
[363589918,1748778634032,-430.0,0.00016438,2]
[363589919,1748778634042,-400.0,0.00016438,2]
[363589920,1748778634052,-430.0,0.00016438,2]
[363589921,1748778634076,-430.0,0.00016438,2]
[363589922,1748778634088,-370.0,0.00016438,2]
[363589923,1748778634098,-430.0,0.00016438,2]
[363589924,1748778634109,-430.0,0.00016438,2]
[363589925,1748778634119,-430.0,0.00016438,2]
[363589926,1748778634130,-197.48797932,0.00016438,2]
[363589927,1748778634141,-247.11524042,0.00016438,2]
[363589928,1748778634152,-430.0,0.00016438,2]
[363589929,1748778634167,-430.0,0.00016438,2]
[363589930,1748778634177,-430.0,0.00016438,2]
[363589931,1748778634188,-374.35782747,0.00016438,2]
[363589932,1748778634199,-430.0,0.00016438,2]
[363589933,1748778634210,-430.0,0.00016438,2]
[363589934,1748778634220,-430.0,0.00016438,2]
[363589935,1748778634230,-430.0,0.00016438,2]
[363589936,1748778634241,-430.0,0.00016438,2]
[363589937,1748778634422,-400.0,0.00016438,2]
[363589938,1748778634433,-431.37283145,0.00016438,2]
[363589939,1748778634443,-430.3143363,0.00016438,2]
[363589940,1748778634453,-430.0,0.00016438,2]
[363589941,1748778634462,-430.0,0.00016438,2]
[363589942,1748778634472,-430.0,0.00016438,2]
[363589943,1748778634483,-430.0,0.00016438,2]
[363589944,1748778634493,-430.0,0.00016438,2]
[363589945,1748778634503,-430.0,0.00016438,2]
[363589946,1748778634513,-430.0,0.00016438,2]
[363589947,1748778634523,-430.0,0.00016438,2]
[363589948,1748778634533,-430.0,0.00016438,2]
[363589949,1748778634543,-500.0,0.00016438,2]
[363589950,1748778634553,-500.0,0.00016438,2]
[363589951,1748778634563,-500.0,0.00016438,2]
[363589952,1748778634573,-430.0,0.00016438,2]
[363589953,1748778634583,-430.0,0.00016438,2]
[363589954,1748778634594,-430.0,0.00016438,2]
[363589955,1748778634603,-430.0,0.00016438,2]
[363589956,1748778634613,-430.0,0.00016438,2]
[363589957,1748778634623,-430.0,0.00016438,2]
[363589958,1748778634632,-430.0,0.00016438,2]
[363589959,1748778634642,-430.0,0.00016438,2]
[363589960,1748778634652,-430.0,0.00016438,2]
[363589961,1748778634663,-430.0,0.00016438,2]
[363589962,1748778634673,-430.0,0.00016438,2]
[363589963,1748778634683,-434.22804947,0.00016438,2]
[363589964,1748778634693,-188.0,0.00016438,2]
[363589965,1748778634704,-414.13024185,0.00016438,2]
[363589966,1748778634714,-430.0,0.00016438,2]
[363589967,1748778634724,-430.0,0.00016438,2]
[363589968,1748778634734,-430.0,0.00016438,2]
[363589969,1748778634744,-430.0,0.00016438,2]
[363589970,1748778634754,-430.0,0.00016438,2]
[363589971,1748778634764,-389.88872956,0.00016438,2]
[363589972,1748778634774,-430.0,0.00016438,2]
[363589973,1748778634783,-430.0,0.00016438,2]
[363589974,1748778634794,-430.0,0.00016438,2]
[363589975,1748778634804,-430.0,0.00016438,2]
[363589976,1748778634814,-430.0,0.00016438,2]
[363589977,1748778634824,-430.86586327,0.00016438,2]
[363589978,1748778634835,-430.0,0.00016438,2]
[363589979,1748778634846,-430.0,0.00016438,2]
[363589980,1748778634856,-430.64548133,0.00016438,2]
[363589981,1748778634866,-435.23807297,0.00016438,2]
[363589982,1748778634877,-430.0,0.00016438,2]
[363589983,1748778634886,-430.0,0.00016438,2]
[363589984,1748778634896,-430.0,0.00016438,2]
[363589985,1748778634907,-430.0,0.00016438,2]
[363589986,1748778634917,-430.0,0.00016438,2]
[363589987,1748778634927,-430.0,0.00016438,2]
[363589988,1748778634937,-430.0,0.00016438,2]
[363589989,1748778634950,-430.0,0.00016438,2]
[363589990,1748778634960,-430.0,0.00016438,2]
[363589991,1748778634970,-430.0,0.00016438,2]
[363589992,1748778634981,-430.0,0.00016438,2]
[363589993,1748778634991,-430.0,0.00016438,2]
[363589994,1748778635000,-430.0,0.00016438,2]
[363589995,1748778635010,-438.21954181,0.00016438,2]
[363589996,1748778635020,-556.1101045,0.00016438,2]
[363589997,1748778635030,-430.0,0.00016438,2]
[363589998,1748778635040,-430.0,0.00016438,2]
[363589999,1748778635050,-353.92684136,0.00016438,2]
[363590000,1748778635060,-430.0,0.00016438,2]
[363590001,1748778635074,-430.0,0.00016438,2]
[363590002,1748778635084,-604.79,0.00016438,2]
[363590003,1748778635094,-430.0,0.00016438,2]
[363590004,1748778635105,-430.0,0.00016438,2]
[363590005,1748778635115,-500.0,0.00016438,2]
[363590006,1748778635125,-430.0,0.00016438,2]
[363590007,1748778635135,-519.18,0.00016438,2]
[363590008,1748778635145,-430.0,0.00016438,2]
[363590009,1748778635155,-430.0,0.00016438,2]
[363590010,1748778635166,-430.0,0.00016438,2]
[363590011,1748778635175,-430.0,0.00016438,2]
[363590012,1748778635186,-435.71138191,0.00016438,2]
[363590013,1748778635196,-430.0,0.00016438,2]
[363590014,1748778635205,-430.0,0.00016438,2]
[363590015,1748778635215,-431.79222679,0.00016438,2]
[363590016,1748778635226,-430.0,0.00016438,2]
[363590017,1748778635237,-430.0,0.00016438,2]
[363590018,1748778635247,-430.0,0.00016438,2]
[363590019,1748778635258,-500.31056891,0.00016438,2]
[363590020,1748778635267,-430.0,0.00016438,2]
[363590021,1748778635277,-430.0,0.00016438,2]
[363590022,1748778635287,-430.0,0.00016438,2]
[363590023,1748778635297,-430.0,0.00016438,2]
[363590024,1748778635307,-430.0,0.00016438,2]
[363590025,1748778635317,-430.0,0.00016438,2]
[363590026,1748778635327,-430.0,0.00016438,2]
[363590027,1748778635337,-400.0,0.00016438,2]
[363590028,1748778635347,-430.0,0.00016438,2]
[363590029,1748778635357,-430.0,0.00016438,2]
[363590030,1748778635367,-430.0,0.00016438,2]
[363590031,1748778635376,-500.0,0.00016438,2]
[363590032,1748778635386,-431.38333215,0.00016438,2]
[363590033,1748778635396,-430.0,0.00016438,2]
[363590034,1748778635407,-430.0,0.00016438,2]
[363590035,1748778635418,-431.01955652,0.00016438,2]
[363590036,1748778635428,-430.0,0.00016438,2]
[363590037,1748778635439,-430.0,0.00016438,2]
[363590038,1748778635450,-430.0,0.00016438,2]
[363590039,1748778635459,-430.0,0.00016438,2]
[363590040,1748778635469,-500.0,0.00016438,2]
[363590041,1748778635479,-568.92821805,0.00016438,2]
[363590042,1748778635489,-500.0,0.00016438,2]
[363590043,1748778635499,-500.0,0.00016438,2]
[363590044,1748778635509,-500.0,0.00016438,2]
[363590045,1748778635519,-500.0,0.00016438,2]
[363590046,1748778635529,-500.0,0.00016438,2]
[363590047,1748778635539,-500.0,0.00016438,2]
[363590048,1748778635549,-500.0,0.00016438,2]
[363590049,1748778635559,-430.0,0.00016438,2]
[363590050,1748778635570,-430.0,0.00016438,2]
[363590051,1748778635579,-430.0,0.00016438,2]
[363590052,1748778635590,-502.99050234,0.00016438,2]
[363590053,1748778635600,-430.0,0.00016438,2]
[363590054,1748778635610,-430.0,0.00016438,2]
[363590055,1748778635620,-430.0,0.00016438,2]
[363590056,1748778635630,-430.0,0.00016438,2]
[363590057,1748778635640,-430.0,0.00016438,2]
[363590058,1748778635649,-430.44159982,0.00016438,2]
[363590059,1748778635661,-430.75676194,0.00016438,2]
[363590060,1748778635670,-430.0,0.00016438,2]
[363590061,1748778635680,-430.0,0.00016438,2]
[363590062,1748778635690,-430.0,0.00016438,2]
[363590063,1748778635700,-181.18667016,0.00016438,2]
[363590064,1748778635709,-430.0,0.00016438,2]
[363590065,1748778635719,-430.0,0.00016438,2]
[363590066,1748778635729,-430.0,0.00016438,2]
[363590067,1748778635739,-430.0,0.00016438,2]
[363590068,1748778635749,-432.73205702,0.00016438,2]
[363590069,1748778635759,-430.0,0.00016438,2]
[363590070,1748778635768,-431.8758547,0.00016438,2]
[363590071,1748778635778,-430.0,0.00016438,2]
[363590072,1748778635788,-430.0,0.00016438,2]
[363590073,1748778635798,-430.0,0.00016438,2]
[363590074,1748778635807,-430.0,0.00016438,2]
[363590075,1748778635818,-430.0,0.00016438,2]
[363590076,1748778635827,-430.0,0.00016438,2]
[363590077,1748778635837,-430.0,0.00016438,2]
[363590078,1748778635847,-430.0,0.00016438,2]
[363590079,1748778635856,-430.0,0.00016438,2]
[363590080,1748778635866,-430.0,0.00016438,2]
[363590081,1748778635876,-430.0,0.00016438,2]
[363590082,1748778635886,-430.0,0.00016438,2]
[363590083,1748778635896,-150.94544864,0.00016438,2]
[363590084,1748778635908,-430.0,0.00016438,2]
[363590085,1748778635918,-430.0,0.00016438,2]
[363590086,1748778635928,-430.0,0.00016438,2]
[363590087,1748778635938,-501.47722622,0.00016438,2]
[363590088,1748778635951,-430.0,0.00016438,2]
[363590089,1748778635961,-430.0,0.00016438,2]
[363590090,1748778635971,-430.0,0.00016438,2]
[363590091,1748778635984,-401.11524373,0.00016438,2]
[363590092,1748778635995,-430.0,0.00016438,2]
[363590093,1748778636005,-430.0,0.00016438,2]
[363590094,1748778636015,-430.0,0.00016438,2]
[363590095,1748778636026,-430.0,0.00016438,2]
[363590096,1748778636036,-430.0,0.00016438,2]
[363590097,1748778636047,-430.0,0.00016438,2]
[363590098,1748778636056,-430.0,0.00016438,2]
[363590099,1748778636066,-430.0,0.00016438,2]
[363590100,1748778636076,-430.0,0.00016438,2]
[363590101,1748778636086,-321.82138163,0.00016438,2]
[363590102,1748778636095,-431.13384385,0.00016438,2]
[363590103,1748778636105,-430.0,0.00016438,2]
[363590104,1748778636115,-430.0,0.00016438,2]
[363590105,1748778636125,-430.0,0.00016438,2]
[363590106,1748778636135,-430.0,0.00016438,2]
[363590107,1748778636145,-164.93971599,0.00016438,2]
[363590108,1748778636155,-430.0,0.00016438,2]
[363590109,1748778636165,-430.0,0.00016438,2]
[363590110,1748778636175,-215.44522089,0.00016438,2]
[363590111,1748778636351,-214.55477911,0.00016438,2]
[363590112,1748778636362,-430.0,0.00016438,2]
[363590113,1748778636372,-430.0,0.00016438,2]
[363590114,1748778636382,-500.0,0.00016438,2]
[363590115,1748778636392,-500.0,0.00016438,2]
[363590116,1748778636402,-500.0,0.00016438,2]
[363590117,1748778636413,-500.0,0.00016438,2]
[363590118,1748778636423,-500.0,0.00016438,2]
[363590119,1748778636432,-430.0,0.00016438,2]
[363590120,1748778636442,-500.0,0.00016438,2]
[363590121,1748778636452,-500.0,0.00016438,2]
[363590122,1748778636462,-646.11548031,0.00016438,2]
[363590123,1748778636472,-430.0,0.00016438,2]
[363590124,1748778636483,-430.0,0.00016438,2]
[363590125,1748778636493,-431.73726645,0.00016438,2]
[363590126,1748778636502,-303.33583992,0.00016438,2]
[363590127,1748778636513,-430.0,0.00016438,2]
[363590128,1748778636522,-430.0,0.00016438,2]
[363590129,1748778636532,-430.0,0.00016438,2]
[363590130,1748778636542,-430.0,0.00016438,2]
[363590131,1748778636552,-430.0,0.00016438,2]
[363590132,1748778636561,-430.24668836,0.00016438,2]
[363590133,1748778636571,-430.0,0.00016438,2]
[363590134,1748778636581,-430.0,0.00016438,2]
[363590135,1748778636591,-430.0,0.00016438,2]
[363590136,1748778636601,-430.0,0.00016438,2]
[363590137,1748778636611,-430.0,0.00016438,2]
[363590138,1748778636621,-430.0,0.00016438,2]
[363590139,1748778636631,-152.96196229,0.00016438,2]
[363590140,1748778636641,-432.20786617,0.00016438,2]
[363590141,1748778636769,-430.0,0.00016438,2]
[363590142,1748778636779,-430.0,0.00016438,2]
[363590143,1748778636790,-430.0,0.00016438,2]
[363590144,1748778636800,-430.0,0.00016438,2]
[363590145,1748778636810,-430.0,0.00016438,2]
[363590146,1748778636820,-430.0,0.00016438,2]
[363590147,1748778636830,-518.67112894,0.00016438,2]
[363590148,1748778636840,-430.0,0.00016438,2]
[363590149,1748778636850,-430.0,0.00016438,2]
[363590150,1748778636860,-430.0,0.00016438,2]
[363590151,1748778636870,-281.13052397,0.00016438,2]
[363590152,1748778636880,-430.0,0.00016438,2]
[363590153,1748778636890,-500.0,0.00016438,2]
[363590154,1748778636900,-500.0,0.00016438,2]
[363590155,1748778636911,-403.41969708,0.00016438,2]
[363590156,1748778636921,-430.0,0.00016438,2]
[363590157,1748778636931,-430.0,0.00016438,2]
[363590158,1748778636942,-430.0,0.00016438,2]
[363590159,1748778636954,-430.0,0.00016438,2]
[363590160,1748778636963,-430.0,0.00016438,2]
[363590161,1748778636974,-430.0,0.00016438,2]
[363590162,1748778636984,-430.0,0.00016438,2]
[363590163,1748778636994,-430.0,0.00016438,2]
[363590164,1748778637004,-430.0,0.00016438,2]
[363590165,1748778637015,-430.0,0.00016438,2]
[363590166,1748778637026,-430.0,0.00016438,2]
[363590167,1748778637036,-430.24360275,0.00016438,2]
[363590168,1748778637046,-430.0,0.00016438,2]
[363590169,1748778637056,-487.71355673,0.00016438,2]
[363590170,1748778637066,-430.0,0.00016438,2]
[363590171,1748778637076,-430.0,0.00016438,2]
[363590172,1748778637086,-430.0,0.00016438,2]
[363590173,1748778637095,-430.0,0.00016438,2]
[363590174,1748778637105,-430.0,0.00016438,2]
[363590175,1748778637115,-430.0,0.00016438,2]
[363590176,1748778637125,-430.0,0.00016438,2]
[363590177,1748778637134,-470.81905927,0.00016438,2]
[363590178,1748778637145,-156.03623543,0.00016438,2]
[363590179,1748778637155,-430.0,0.00016438,2]
[363590180,1748778637164,-430.0,0.00016438,2]
[363590181,1748778637173,-430.0,0.00016438,2]
[363590182,1748778637182,-430.0,0.00016438,2]
[363590183,1748778637192,-430.0,0.00016438,2]
[363590184,1748778637201,-431.96845159,0.00016438,2]
[363590185,1748778637211,-430.0,0.00016438,2]
[363590186,1748778637220,-430.0,0.00016438,2]
[363590187,1748778637229,-430.0,0.00016438,2]
[363590188,1748778637239,-430.53010459,0.00016438,2]
[363590189,1748778637249,-430.0,0.00016438,2]
[363590190,1748778637258,-430.0,0.00016438,2]
[363590191,1748778637268,-400.0,0.00016438,2]
[363590192,1748778637278,-430.0,0.00016438,2]
[363590193,1748778637289,-430.0,0.00016438,2]
[363590194,1748778637298,-430.0,0.00016438,2]
[363590195,1748778637308,-404.06225939,0.00016438,2]
[363590196,1748778637317,-430.08499756,0.00016438,2]
[363590197,1748778637327,-430.9191991,0.00016438,2]
[363590198,1748778637336,-430.0,0.00016438,2]
[363590199,1748778637346,-430.0,0.00016438,2]
[363590200,1748778637355,-430.0,0.00016438,2]
[363590201,1748778637365,-430.0,0.00016438,2]
[363590202,1748778637374,-430.0,0.00016438,2]
[363590203,1748778637383,-430.0,0.00016438,2]
[363590204,1748778637393,-430.0,0.00016438,2]
[363590205,1748778637402,-430.0,0.00016438,2]
[363590206,1748778637412,-430.0,0.00016438,2]
[363590207,1748778637421,-539.8692032,0.00016438,2]
[363590208,1748778637431,-430.0,0.00016438,2]